{"text_format":"1","workbook":"xlsx","n_sheets":4,"sheets":["Ark1","Ark2","Ark3","Ark4"],"not_rendered":{"charts":0,"images":83,"macros":1,"external_links":0,"defined_names":4,"comments":0,"pivot_tables":0},"unopened":[],"bounds":{"document_bytes":16777216,"sheet_cells":100000,"rows_first":2000,"rows_last":500,"rows_between":2000,"halvings":0,"cell_chars":16384,"cell_head_chars":4096},"cells_cut":0,"cells_raw":0,"read":"whole","date_system":"1900"}

{"sheet":"Ark1","index":0,"n_rows":114,"n_cols":99,"rows_kept":114,"cut":false,"hidden":false,"merged":[]}
[null,null,null,"De danske Bredfodsfluer, Platycheirus (Diptera: Syrphidae)"]
[null,null,null,null,null,null,"HUNNER",null,null,null,null,null,null,null,"Bent Haagen Petersen"]
[null,null,null,null,null,null,"Øjne bredt adskilte"]
[null,"Bredfodsfluerne, Platycheirus, omfatter i Danmark 22 arter, der alle er ret små slanke arter. Det danske navn har"]
[null,"slægten fra hannernes forben, der hos de fleste arter er formet på en for den enkelte art karakteristisk måde. Forbene-"]
[null,"ne er derfor en vigtig bestemmelseskarakter, men de er oftest vanskelige at se tilstrækkeligt tydeligt på billeder. Hun-"]
[null,"nernes forben er normale bortset fra, at forfødderne hos de fleste arter er brede og fladtrykte. Man ser det bedst ved "]
[null,"at sammenligne med fødderne på de mellemste ben. Nogle Bredfodsfluer ligner meget de to Græssvirrefluearter Mela- "]
[null,"nostoma mellinum og scalare, men hos disse har forben og forfødder en normal form, det inderste bagfodsled (me-"]
[null,"tatarsus) er aldrig opsvulmet, og bagkroppens pletter har ofte en noget trekantet form, som ikke forekommer hos Pla-"]
[null,"tycheirus. "]
[null,"Kun 7 af arterne regnes for af være almindelige. De øvrige er mere eller mindre sjældne. De seneste årtier er flere nye "]
[null,"arter kommet til ved udskilning fra almindelige arter. Således dækker P. scutatus over et artskomplex, der også inde-"]
[null,"holderde de sjældne arter P. splendidus og P. aurolateralis. De tre arters hunner kan indtil videre ikke adskilles."]
[null,"Fra  P. clypeatus er udskilt de ligeledes sjældne arter P. europaeus og P. occultus. Disse arter kan ofte kun bestem-"]
[null,"kun bestemmes ved også at læse artsbeskskrivelserne."]
[null,"P. peltatus  har normalt gule bagkropspletter, men ikke sjældent er pletterne mere eller mindre hvidligt pudrede. "]
[null,"P. scutatus kan have bagkropspletterne bronzefarvede, og P. albimanus kan have pletternes grundfarve gulbrun. ",null,null,null,null,null,null,null,null,null,null,null,null,null,null,null,null,null,null,null,null,null,null,null,null,null,null,null,null,null,null,null,null,null,null,null,null,null,null,null,null,null,null,null,null,"-"]
[]
[]
[null,"  Sådan bruger man bedst nøglen."]
[null,"Nøglen er specielt konstrueret til brug ved bestemmelse af fluer på billeder. Den bruger samme kendetegn som"]
[null,"de almindelige nøgler. Blot er man ikke nødt til at gå frem i en given rækkefølge, som man jo ellers skal. Det er"]
[null,"en fordel, da der på billeder ofte er kendetegn, der ikke kan ses, og så ville man gå i stå. Med nøglen her klikker"]
[null,"man uden rækkefølge kun på de kendetegn, man kan se på billedet. Man behøver altså ikke starte med det øverste"]
[null,"af spørgsmålene. Det er altid bedst at starte med kendetegn, som er meget tydelige at se på billedet. Er der kende-"]
[null,"tegn, der er skjult på billedet, springes de således bare over. Men der skal ikke gerne være for mange af den slags."]
[null,"Hver gang man klikker på et kendetegn, vises et billede af kendetegnet. Klikker man på et kendetegn, der ikke"]
[null,"passer med nøglens, gør nøglen opmærksom på, at en bestemmelse da næppe vil være mulig."]
[]
[null,"I takt med, at man klikker på kendetegn, kan man på oversigten over nøglens arter se, hvordan antallet af mulig-"]
[null,"heder bliver mindre. Arter, som ikke har alle de kendetegn, der er klikket på, forsvinder fra oversigten. Når der"]
[null," kun er et navn tilbage på oversigten, skriver nøglen, at fluen nu er bestemt. Dens navn vises i feltet øverst på"]
[null,"skemaet. Derefter kan man i artsoversigen klikke på artens navn. Der vises da en beskrivelse af arten og et billede"]
[null,"af denne. Husk altid at læse artsbeskrivelsen. Er man derefter helt sikker på bestemmelsen, kan man indrappor- "]
[null,"tere bestemmelsen. Er man ikke særlig øvet i at bestemme fluer, bør man sikre sig ved først at spørge i Fugle og",null,null,null,null,null,null,null,null,null,null,null,null,null,null,null,null,null,null,null,null,null,null,null,null,null,null,null,null,null,null,null,null,null,null,null,null,null,null,null,null,null,null,null,null,null,null,null,null,null,null,null,null,null,null,null,null,null,null,null,null,null,null,null,null,null,null,null,null,null,null,null,null,null,null,9]
[null,"Naturs tovingeforum."]
[null,". "]
[null,"Tegninger af artskendetegn efter Lundbeck Diptera Danica 1916"]
[null,null,null,null,null,null,null,null,null,null,null,null,null,null,null,null,null," "]
[null,"               Nøgle til danske Bredfodsfluer, Platycheirus (Diptera: Syrphidae)",null,null,null,null,null,null,null,null,null,null,null,null,null,null,null,null,null,null,null,null,null,null,null,null,null,null,null,null,null,null,null,null," Over nøglen kan du læse om Platycheirus"]
[null,null,null,null,null,null,null,null,null,null,null,null,null,null,null,null,null," ",null,null,null,null,null,null,null,null,null,null,null,null,null,null,null,null,"     og om, hvordan nøglen bedst bruges."]
[null,null,null,null,null,"  HUNNER",null,null,null,null,null,null,null,null," ",null,null,null,null,null,{"$f":"IF(AU48=1,VLOOKUP(AU47,AU77:AV102,2,FALSE),\"         Platycheirus sp.\")","v":"Platycheirus manicatus"},null,null,null,null,null,null,null,null,null,null,null,null,null,null,null,null,null,null,null,null,null,null,null,null,null,null,"*",null,null," ","*",null,null,null,"*",null,"*",null,null,"*",null,null,"*",null,null,"*",null,null,"*",null,"*",null,"*",null,"*",null,"*"]
[null,null,null,null,null,"   Øjne bredt adskilte",null,null,null,null,null,null,null,null,null,null,null," ",null,null,null,null,{"$f":"IF(AU48=1,VLOOKUP(AU47,BF77:BG102,2,FALSE), \"          Bredfodsflue\")","v":"    Mat Bredfodsflue"},null,null,null,null,null,null,null,null,null,null,null,null,null,null," ",null,null,"Afkrydsede felter",null,null,null,null,null,{"$f":"SUM(AV44+AZ44+BD44+BI44+BF44+BL44+BO44+BR44+BX44+BV44+BT44+BZ44)","v":7},{"$f":"IF(AY44=0,0,1)","v":1},null,null,{"$f":"+AV45+AW45+AX45+AY45","v":1},{"$f":"IF(BC44=0,0,1)","v":1},null,null,{"$f":"+AZ45+BA45+BB45+BC45","v":1},{"$f":"IF(BE44=0,0,1)","v":1},{"$f":"+BD45+BE45","v":1},{"$f":"IF(BH44=0,0,1)","v":0},null,{"$f":"+BF45+BG45+BH45","v":0},{"$f":"IF(BK44=0,0,1)","v":0},null,{"$f":"+BI45+BJ45+BK45","v":0},{"$f":"IF(BN44=0,0,1)","v":0},null,{"$f":"+BN45+BM45+BL45","v":0},{"$f":"IF(BQ44=0,0,1)","v":1},null,{"$f":"+BP45+BQ45+BO45","v":1},{"$f":"IF(BS44=0,0,1)","v":1},{"$f":"+BR45+BS45","v":1},{"$f":"IF(BU44=0,0,1)","v":0},{"$f":"+BT45+BU45","v":0},{"$f":"IF(BW44=0,0,1)","v":1},{"$f":"+BV45+BW45","v":1},{"$f":"IF(BY44=0,0,1)","v":1},{"$f":"BX45+BY45","v":1},{"$f":"IF(CA44=0,0,1)","v":0},{"$f":"+BZ45+CA45","v":0}]
[null,"Bagkrop med gule pletter, der kan være svagt hvid- ell. sølvpudrede ?",null,null,null,null,null,null,null,null,null,null,null,null,null,null,null,null," ",{"$f":"IF(AU44=0,\" \",IF((AU48>=2)*AND(AU44=AU47),AU48,\" \"))","v":" "},{"$f":"IF(AU44=0,\" \",IF((AU48>=2)*AND(AU44=AU47),\"arter har de kendetegn, du har markeret\",\" \"))","v":" "},null,null,null,null,null,null,null,null,null,null,null,null,null,null,null,null,null,null,null,null,null,null,null,null,null,null,{"$f":"IF(CE45=\" \",0,1)","v":1},{"$f":"IF(CE46=\" \",0,1)","v":0},{"$f":"IF(CE47=\" \",0,1)","v":0},{"$f":"IF(CE48=\" \",0,1)","v":0},{"$f":"IF(CE49=\" \",0,1)","v":0},{"$f":"IF(CE50=\" \",0,1)","v":1},{"$f":"IF(CE51=\" \",0,1)","v":0},{"$f":"IF(CE52=\" \",0,1)","v":0},{"$f":"IF(CE53=\" \",0,1)","v":1},{"$f":"IF(CE54=\" \",0,1)","v":0},{"$f":"IF(CE55=\" \",0,1)","v":0},{"$f":"IF(CE56=\" \",0,1)","v":0},{"$f":"IF(CE57=\" \",0,1)","v":0},{"$f":"IF(CE58=\" \",0,1)","v":0},{"$f":"IF(CE59=\" \",0,1)","v":0},{"$f":"IF(CE60=\" \",0,1)","v":0},{"$f":"IF(CE61=\" \",0,1)","v":0},{"$f":"IF(CE62=\" \",0,1)","v":0},{"$f":"IF(CE63=\" \",0,1)","v":0},{"$f":"IF(CE64=\" \",0,1)","v":0},{"$f":"IF(CE65=\" \",0,1)","v":1},{"$f":"IF(CE66=\" \",0,1)","v":0},{"$f":"IF(CE67=\" \",0,1)","v":0},{"$f":"IF(CE68=\" \",0,1)","v":1},{"$f":"IF(CE69=\" \",0,1)","v":0},{"$f":"IF(CE70=\" \",0,1)","v":0},{"$f":"IF(CE71=\" \",0,1)","v":0},{"$f":"IF(CE72=\" \",0,1)","v":1},{"$f":"IF(CE73=\" \",0,1)","v":1},{"$f":"IF(CE74=\" \",0,1)","v":0},{"$f":"IF(CE75=\" \",0,1)","v":0},{"$f":"IF(CE76=\" \",0,1)","v":0},null," ",null,{"$f":"IF(CF45,\"x\",\" \")","v":"x"},true]
[" ","     -          med blågrå pletter ?",null,null,null,null,null,null,null,null,null,null,null,null,null,null,null,null," ",{"$f":"IF(AU48=1,\"          Fluen er nu bestemt. Se ovenfor\",IF(AU44>AU47,\" \",\"   Se de mulige arter i oversigten nedenfor\"))","v":"          Fluen er nu bestemt. Se ovenfor"},null,null,null,null,null,null,null,null,null,null,null,null,null,null,null,null,null,null,null,null,null,null,null,null,null,null,null,null,null,null,null,null,null,null,null,null,null,null,null,null,null,null,null,null,null,null,null,null,null,null,null,null,null,null,null,null,null,null,null,null," ",null," ",0]
[null,"     -          med større eller mindre røde partier ?",null,null,null,null,null,null,null,null,null,null,null,null,null,null,null,null," ",{"$f":"IF(AU44>AU47,\" Afkrydsede kendetegn passer ikke med nøglens.\",\" \")","v":" "},null,null,null,null,null,null,null,null,null,null,null,null,null,null,null,null,null,null,null,null,null,null,"Maks.",null,null,null,{"$f":"MAX(AU49:AU74)","v":7},null,null,null,null,5,4,3,1,null,null,null,null,null,null,null,null,null,null,null,null,null,null,null,null,null,null,null,null,null,null,null,null,null," ",null," ",0]
[null,"     -          med hvidlige pletter på 3. led, måske også hvidt på 4. led ?",null,null,null,null,null,null,null,null,null,null,null,null,null,null,null,null,null,null,{"$f":"IF(AU44>AU47,\" Det gør en bestemmelse meget tvivlsom.\",\" \")","v":" "},null,null,null,null,null,null,null,null,null,null,null,null,null,null,null,null,null,null,null,null,null,"Ant. Maks.",null,null,null,{"$f":"COUNTIF(AU49:AU74,AU47)","v":1},"   Pletters farve",null,null,null,"  Antal pletter",null,null,null,"  Ant.",null,"   Baglår",null,null,"Bagsk.ben",null,null,"  F&M lår",null,null,"F&M sk.b-",null,null,"Bagfød.",null," F&M",null,"  Ant.",null,"Ansigt",null,"hvidt hår",null,null," ",null," ",0]
[null,"Bagkrop m. 5 par pletter, 6. led mere eller mindre gult ?",null,null,null,null,null,null,null,null,null,null,null,null,null,null,null,null,null,"Klik på artsnr. og se billede og artsbeskrivelse",null,null,null,null,null,null,null,null,null,null,null,null,null,null,null,null,null,null,null,{"$f":"COUNT(AV49:BO49)","v":2},"angustatus",null,null,null,null,null,{"$f":"COUNT(AV49:CA49)","v":2},{"$f":"IF(CE$45=\"x\",1,\" \")","v":1},null,null,null,null,null,{"$f":"IF(CE$51=\"x\",1,\" \")","v":" "},null,{"$f":"IF(CE$53=\"x\",1,\" \")","v":1},null,null,{"$f":"IF(CE$56=\"x\",1,\" \")","v":" "},{"$f":"IF(CE$57=\"x\",1,\" \")","v":" "},null,{"$f":"IF(CE$59=\"x\",1,\" \")","v":" "},null,{"$f":"IF(CE$61=\"x\",1,\" \")","v":" "},null,null,{"$f":"IF(CE$64=\"x\",1,\" \")","v":" "},null,null,{"$f":"IF($CE$67=\"x\",1,\" \")","v":" "},null,{"$f":"IF($CE$69=\"x\",1,\" \")","v":" "},null,{"$f":"IF(CE$71=\"x\",1,\" \")","v":" "},null,null,{"$f":"IF(CE$74=\"x\",1,\" \")","v":" "},{"$f":"IF(CE$75=\"x\",1,\" \")","v":" "},null,null," ",null," ",0]
[null,"       -        m. 4 par pletter: 5. leds sidekant ikke ell. lidt gul. 6. sort ?",null,null,null,null,null,null,null,null,null,null,null,null,null,null,null,null," ",null,null,null,null,null,null,null,null,null,null,null,null,null,null,null,null,null,null,null,null,{"$f":"COUNT(AV50:BO50)","v":3},"clypeatus",null,null,null,null,null,3,1,null,null,null,null,{"$f":"IF(CE$50=\"x\",1,\" \")","v":1},null,null,{"$f":"IF(CE$53=\"x\",1,\" \")","v":1},null,null," ",null,null," ",null,{"$f":"IF(CE$61=\"x\",1,\" \")","v":" "},null,null," ",null,null," ",null," ",null," ",null,null," "," ",null,null," ",null,{"$f":"IF(CF50,\"x\",\" \")","v":"x"},true]
[null,null," -    ","     m. 3 eller to par pletter: 5. og 6. led sorte, måske sølvgrå ?",null,null,null,null,null,null,null,null,null,null,null,null,null,null,null,null,1,{"$f":"IF(AU49=AU$47,\"angustatus\",\" \")","v":" "},null,null,null,null,null,11,{"$f":"IF(AU59=AU47,\"peltatus\",\" \")","v":" "},null,null,null,null,null,null,null,null,null,null,3,"europaeus",null,null,null,null,null,3,1,null,null,null,null,1,null,null,{"$f":"IF(CE$53=\"x\",1,\" \")","v":1},null,null," ",{"$f":"IF(CE$57=\"x\",1,\" \")","v":" "},null," ",null,{"$f":"IF(CE$61=\"x\",1,\" \")","v":" "},null,null," ",null,null," ",null,null,{"$f":"IF($CE$70=\"x\",1,\" \")","v":" "}," ",null,null," "," ",null,null," ",null," ",0]
[null,"       -        m. hvidgule pletter på 3. led, uden pletter eller delvis rød ?",null,null,null,null,null,null,null,null,null,null,null,null,null,null,null,null,null,null,2,{"$f":"IF(AU50=AU47,\"clypeatus\",\" \")","v":" "},null,null,null,null,null,12,{"$f":"IF(AU60=AU47,\"transfugus\",\" \")","v":" "},null,null,null,null,null,null,null,null,null,null,2,"fulviventris",null,null,null,null,null,2,1,null,null,null,{"$f":"IF(CE$49=\"x\",1,\" \")","v":" "},null,null,null,1,null,{"$f":"IF(CE$55=\"x\",1,\" \")","v":" "},null,null,{"$f":"IF(CE$58=\"x\",1,\" \")","v":" "},null,null,{"$f":"IF(CE$61=\"x\",1,\" \")","v":" "},null,null," "," ",null," ",null," ",null," ",null,null," "," ",null,null," ",null," ",0]
[null,"Følehornsled 3  helt sort  (Pas på, ofte svært at se, vær sikker !) ? ",null,null,null,null,null,null,null,null,null,null,null,null,null,null,null,null,null,null,3,{"$f":"IF(AU51=AU47,\"europaeus\",\" \")","v":" "},null,null,null,null,null,13,{"$f":"IF(AU61=AU47,\"albimanus\",\" \")","v":" "},null,null,null,null,null,null,null,null,null,null,2,"immarginatus",null,null,null,null,null,3,1,null,null,null,{"$f":"IF(CE$49=\"x\",1,\" \")","v":" "},null,null,null,1,null," ",{"$f":"IF(CE$56=\"x\",1,\" \")","v":" "},null,null,{"$f":"IF(CE$59=\"x\",1,\" \")","v":" "},null," ",null,null," ",null,null," ",null,null," ",null,{"$f":"IF(CE$72=\"x\",1,\" \")","v":1},null," "," ",null,null," ",null,"x",true]
[null," ",null,"-",null,"    gulligt eller brunligt underst ved basis ?",null,null,null,null,null,null,null,null,null,null,null,null,null,null,4,{"$f":"IF(AU52=AU47,\"fulviventris\",\" \")","v":" "},null,null,null,null,null,14,{"$f":"IF(AU62=AU47,\"scutatus-komplex\",\" \")","v":" "},null,null,null,null,null,null,null,null,null,null,3,"occultus",null,null,null,null,null,3,1,null,null,null,null,{"$f":"IF(CE$50=\"x\",1,\" \")","v":1},null,null,1,null,null," ",null,null," ",null," ",null,null," ",null,null," ",null,null," "," ",null,null," "," ",null,null," ",null," ",false]
[null,"Baglår helt gule eller på midten meget svagt mørkere ?",null,null,null,null,null,null,null,null,null,null,null,null,null,null,null,null,null,null,5,{"$f":"(IF(AU53=AU47,\"immarginatus\",\" \"))","v":" "},null,null,null,null,null,15,{"$f":"IF(AU63=AU47,\"discimanus\",\" \")","v":" "},null,null,null,null,null,null,null,null,null,null,2,"perpallidus",null,null,null,null,null,4,1,null,null,null,{"$f":"IF(CE$49=\"x\",1,\" \")","v":" "},null,null,null,1,null," ",null,null,{"$f":"IF(CE$58=\"x\",1,\" \")","v":" "},null,null," ",{"$f":"IF(CE$62=\"x\",1,\" \")","v":" "},null,null,{"$f":"IF(CE$65=\"x\",1,\" \")","v":1},null," ",null,null," ",null,1,null," "," ",null,null," ",null," ",0]
[null,"        -     med mere eller mindre brede sorte ringe eller partier ? ",null,null,null,null,null,null,null,null,null,null,null,null,null,null,null,null,null,null,6,{"$f":"IF(AU54=AU47,\"occultus\",\" \")","v":" "},null,null,null,null,null,16,{"$f":"IF(AU64=AU47,\"manicatus\",\" \")","v":"manicatus"},null,null,null,null,null,null,null,null,null,null,3,"podagratus",null,null,null,null,null,3,1,null,null,null,null,{"$f":"IF(CE$50=\"x\",1,\" \")","v":1},null,null,1,null,null,null,{"$f":"IF(CE$57=\"x\",1,\" \")","v":" "},null," ",{"$f":"IF(CE$60=\"x\",1,\" \")","v":" "}," ",null,null," ",null,null,{"$f":"IF($CE$67=\"x\",1,\" \")","v":" "},null,null," "," ",null,null," "," ",null,null," ",null," ",0]
[null,"        -     sorte, ofte med lidt gult ved spids og måske på basis ?",null,null,null,null,null,null,null,null,null,null,null,null,null,null,null,null,null,null,7,{"$f":"IF(AU55=AU47,\"perpallidus\",\" \")","v":" "},null,null,null,null,null,17,{"$f":"IF(AU65=AU47,\"tarsalis\",\" \")","v":" "},null,null,null,null,null,null,null,"         Art",null,null,2,"scambus",null,null,null,null,null,3,1,null,null,null,{"$f":"IF(CE$49=\"x\",1,\" \")","v":" "},null,null,null,1,null,null," ",null,null," ",null," ",null,null," ",null,null,{"$f":"IF($CE$67=\"x\",1,\" \")","v":" "},null,null," ",null,1,null," ",null,{"$f":"IF(CE$76=\"x\",1,\" \")","v":" "},null," ",null," ",false]
[null,"Bagskinneben helt gule, eller på midten meget svagt mørkere ?",null,null,null,null,null,null,null,null,null,null,null,null,null,null,null,null,null,null,8,{"$f":"IF(AU56=AU47,\"podagratus\",\" \")","v":" "},null,null,null,null,null,18,{"$f":"IF(AU66=AU47,\"ambiguus\",\" \")","v":" "},null,null,null,null,null,null,null,null,null,null,2,"sticticus",null,null,null,null,null,5,null,{"$f":"IF(CE$46=\"x\",1,\" \")","v":" "},null,null,null,{"$f":"IF(CE$50=\"x\",1,\" \")","v":1},null,null,1,{"$f":"IF(CE$54=\"x\",1,\" \")","v":" "},null," ",null,null," ",null,null,null,{"$f":"IF(CE$63=\"x\",1,\" \")","v":" "},null,{"$f":"IF(CE$65=\"x\",1,\" \")","v":1},{"$f":"IF(CE$66=\"x\",1,\" \")","v":" "},null,{"$f":"IF($CE$68=\"x\",1,\" \")","v":1},null," ",null,1,null," ",null,{"$f":"IF(CE$76=\"x\",1,\" \")","v":" "},null," ",null," ",0]
[null,"            -             med  mere eller mindre brede sorte ringe ell. partier  ?",null,null,null,null,null,null,null,null,null,null,null,null,null,null,null,null,null,null,9,{"$f":"IF(AU57=AU47,\"scambus\",\" \")","v":" "},null,null,null,null,null,19,{"$f":"IF(AU67=AU47,\"granditarsis\",\" \")","v":" "},null,null,null,null,null,null,null,{"$f":"VLOOKUP(BY36,N80:O111,2)","v":"Følehornsled 3 helt sort"},null,null,2,"peltatus",null,null,null,null,null,5,1,null,null,null,null,{"$f":"IF(CE$50=\"x\",1,\" \")","v":1},null,null,null,{"$f":"IF(CE$54=\"x\",1,\" \")","v":" "},null,null,{"$f":"IF(CE$57=\"x\",1,\" \")","v":" "},null,null," "," ",{"$f":"IF(CE$62=\"x\",1,\" \")","v":" "},null," ",1,null,null,{"$f":"IF($CE$68=\"x\",1,\" \")","v":1},null," ",{"$f":"IF(CE$71=\"x\",1,\" \")","v":" "},null,{"$f":"IF(CE$73=\"x\",1,\" \")","v":1},{"$f":"IF(CE$74=\"x\",1,\" \")","v":" "},{"$f":"IF(CE$75=\"x\",1,\" \")","v":" "},null,null," ",null," ",0]
[null,"            -             sorte, ofte lidt gule inderst ved knæ ?",null,null,null,null,null,null,null,null,null,null,null,null,null,null,null,null,null,null,10,{"$f":"IF(AU58=AU47,\"sticticus\",\" \")","v":" "},null,null,null,null,null,20,{"$f":"IF(AU68=AU47,\"rosarum\",\" \")","v":" "},null,null,null,null,null,null,null,null,null,null,1,"transfugus",null,null,null,null,null,4,{"$f":"IF(CE$45=\"x\",1,\" \")","v":1},null,null,null,null,null,{"$f":"IF(CE$51=\"x\",1,\" \")","v":" "},null,null," ",null,null," ",null,null," "," ",null,null,null,{"$f":"IF(CE$65=\"x\",1,\" \")","v":1},null,null,1,null," ",null,1,null," ",null,{"$f":"IF(CE$76=\"x\",1,\" \")","v":" "},null," ",null," ",false]
[null,"For- og/ eller mellemlår gule, måske med antydning af stribe ?",null,null,null,null,null,null,null,null,null,null,null,null,null,null,null,null,null,null,null,null,null,null,null,null,null,null,null,null,null,null,null,null,null,null,null,null,null,1,"albimanus",null,null,null,null,null,4,null,{"$f":"IF(CE$46=\"x\",1,\" \")","v":" "},null,null,null,null,{"$f":"IF(CE$51=\"x\",1,\" \")","v":" "},null,{"$f":"IF(CE$53=\"x\",1,\" \")","v":1}," ",null,null," ",null,null," "," "," ",null,null,1," ",null,1,null," "," ",null,{"$f":"IF(CE$73=\"x\",1,\" \")","v":1}," ",{"$f":"IF(CE$75=\"x\",1,\" \")","v":" "},null,null," ",null," ",0]
[null,"             -            med sorte ringe eller tydelige  striber på bagside ? ",null,null,null,null,null,null,null,null,null,null,null,null,null,null,null,null,null,null,null,null,null,null,null,null,null,null,null,null,null,null,null,null,null,null,null,null,null,1,"scutatus",null,null,null,null,null,3,{"$f":"IF(CE$45=\"x\",1,\" \")","v":1},null,null,null,null,null,{"$f":"IF(CE$51=\"x\",1,\" \")","v":" "},null,null," ",null,{"$f":"IF(CE$56=\"x\",1,\" \")","v":" "},null,null," ",null," ",null,null,{"$f":"IF(CE$64=\"x\",1,\" \")","v":" "},null,null,null,1,null," ",null,1,null," ",{"$f":"IF(CE$75=\"x\",1,\" \")","v":" "},null,null," ",null," ",0]
[null,"             -            sorte, oftest med yderste spids gul ?",null,null,null,null,null,null,null,null,null,null,null,null,null,null,null,null,null,null,null,null,null,null,null,null,null,null,null,null,null,null,null,null,null,null,null,null,null,2,"discimanus",null,null,null,null,null,5,null,{"$f":"IF(CE$46=\"x\",1,\" \")","v":" "},null,null,null,{"$f":"IF(CE$50=\"x\",1,\" \")","v":1},null,null,{"$f":"IF(CE$53=\"x\",1,\" \")","v":1},null,null,null," ",null,null," ",null,null,{"$f":"IF(CE$63=\"x\",1,\" \")","v":" "},null,1,{"$f":"IF(CE$66=\"x\",1,\" \")","v":" "},null,1,null,{"$f":"IF($CE$70=\"x\",1,\" \")","v":" "},null,{"$f":"IF(CE$72=\"x\",1,\" \")","v":1},null," ",null,{"$f":"IF(CE$76=\"x\",1,\" \")","v":" "},null," ",null," ",false]
[null,"For- og /eller mellemskinneben  gule eller næsten helt gule ?",null,null,null,null,null,null,null,null,null,null,null,null,null,null,null,null,null,null,null,null,null,null,null,null,null,null,null,null,null,null,null,null,null,null,null,null,null,3,"manicatus",null,null,null,null,null,7,{"$f":"IF(CE$45=\"x\",1,\" \")","v":1},null,null,null,null,1,null,null,1,null,null,null," ",null,null," ",null,null," ",null,1,null,null,1,{"$f":"IF($CE$69=\"x\",1,\" \")","v":" "},null,null,1,{"$f":"IF(CE$73=\"x\",1,\" \")","v":1},null,null,{"$f":"IF(CE$76=\"x\",1,\" \")","v":" "},null," ",null," ",false]
[null,"             -            gule med oftest tydelige sorte ringe ell. sorte yderst  ?",null,null,null,null,null,null,null,null,null,null,null,null,null,null,null,null,null,null,null,null,null,null,null,null,null,null,null,null,null,null,null,null,null,null,null,null,null,3,"tarsalis",null,null,null,null,null,6,{"$f":"IF(CE$45=\"x\",1,\" \")","v":1},null,null,null,null,1,null,null,1,null,null,null," ",null,null," ",null,null," ",null,1,null,null,1,null,{"$f":"IF($CE$70=\"x\",1,\" \")","v":" "},{"$f":"IF(CE$71=\"x\",1,\" \")","v":" "},null,{"$f":"IF(CE$73=\"x\",1,\" \")","v":1},null,null," ",null," ",null,"x",true]
[null,"            -             sorte, ofte lidt gule inderst ved knæ ?",null,null,null,null,null,null,null,null,null,null,null,null,null,null,null,null,null,null,null,null,null,null,null,null,null,null,null,null,null,null,null,null,null,null,null,null,null,1,"ambiguus",null,null,null,null,null,2,null,{"$f":"IF(CE$46=\"x\",1,\" \")","v":" "},null,null,null,1,null,null,null,{"$f":"IF(CE$54=\"x\",1,\" \")","v":" "},null,null," ",null,null," ",null,null," ",null,null,{"$f":"IF(CE$66=\"x\",1,\" \")","v":" "},null,1,null," "," ",null,null,{"$f":"IF(CE$74=\"x\",1,\" \")","v":" "},null,{"$f":"IF(CE$76=\"x\",1,\" \")","v":" "},null," ",null," ",false]
[null,"Bagfødder helt eller delvis gule ?",null,null,null,null,null,null,null,null,null,null,null,null,null,null,null,null,null,null,null,null,null,null,null,null,null,null,null,null,null,null,null,null,null,null,null,null,null,1,"granditarsis",null,null,null,null,null,4,null,null,{"$f":"IF(CE$47=\"x\",1,\" \")","v":" "},null,null,null,null,{"$f":"IF(CE$52=\"x\",1,\" \")","v":" "},1,null,{"$f":"IF(CE$55=\"x\",1,\" \")","v":" "},null,null,null,{"$f":"IF(CE$59=\"x\",1,\" \")","v":" "},null,{"$f":"IF(CE$61=\"x\",1,\" \")","v":" "},null,null,null,{"$f":"IF(CE$65=\"x\",1,\" \")","v":1},null,null,1,null," ",null,{"$f":"IF(CE$72=\"x\",1,\" \")","v":1},null,{"$f":"IF(CE$74=\"x\",1,\" \")","v":" "},null," ",null," ",null," ",0]
[null,null,"  -",null," sorte, i hvert fald på oversiden ?",null,null,null,null,null,null,null,null,null,null,null,null,null,null,null,null,null,null,null,null,null,null,null,null,null,null,null,null,null,null,null,null,null,null,1,"rosarum",null,null,null,null,null,3,{"$f":"IF(CE$45=\"x\",1,\" \")","v":1},null,null,{"$f":"IF(CE$48=\"x\",1,\" \")","v":" "},null,null,null,{"$f":"IF(CE$52=\"x\",1,\" \")","v":" "},null," ",null,null," ",null,{"$f":"IF(CE$59=\"x\",1,\" \")","v":" "},null,null,{"$f":"IF(CE$62=\"x\",1,\" \")","v":" "},null,{"$f":"IF(CE$64=\"x\",1,\" \")","v":" "},{"$f":"IF(CE$65=\"x\",1,\" \")","v":1},null,{"$f":"IF($CE$67=\"x\",1,\" \")","v":" "},1,{"$f":"IF($CE$69=\"x\",1,\" \")","v":" "}," ",{"$f":"IF(CE$71=\"x\",1,\" \")","v":" "},null,null," ",null," ",null," ",null,"x",true]
[null,"For- og/eller mellemfødder gule ?",null,null,null,null,null,null,null,null,null,null,null,null,null,null,null,null,null,null,null,null,null,null,null,null,null,null,null,null,null,null,null,null,null,null,null,null,null,null,null,null,null,null,null,null,null,null,null,null,null,null,null,null,null,null,null,null,null,null,null,null,null,null,null,null,null,null,null,null,null,null,null,null,null,null,null,null,null,null," ",null," ",false]
[null,"       -            -            sorte eller overvejende sorte ?",null,null,null,null,null,null,null,null,null,null,null,null,null,null,null,null,null,null,null,null,null,null,null,null,null,null,null,null,null,null,null,null,null,null,null,null,null,null,null,null,null,null,null,null,null,null,null,null,null,null,null,null,null,null,null,null,null,null,null,null,null,null,null,null,null,null,null,null,null,null,null,null,null,null,null,null,null,null," ",null," ",false]
[null,"Følehornsled 3  længere end bredt ? ",null,null,null,null,null,null,null,null,null,null,null,null,null,null,null,null,null,null,null,null,null,null,null,null,null,null,null,null,null,null,null,null,null,null,null,null,null,null,null,null,null,null,null,null,null,null,null,null,null,null,null,null,null,null,null,null,null,null,null,null,null,null,null,null,null,null,null,null,null,null,null,null,null,null,null,null,null,null," ",null," ",false]
[null,"          -                  ikke længere end bredt ?",null,null,null,null,null,null,null,null,null,null,null,null,null,null,null,null,null,null,null,null,null,null,null,null,null,null,null,null,null,null,null,null,null,null,null,null,null,null,null,null,null,null,null,null,null,null,null,null,null,null,null,null,null,null,null,null,null,null,null,null,null,null,null,null,null,null,null,null,null,null,null,null,null,null,null,null,null,null," ",null,"x",true]
[null,"Mundkant fremskydende til ansigtsknops spids eller længere ? ",null,null,null,null,null,null,null,null,null,null,null,null,null,null,null,null,null,null,null,null,null,null,null,null,null,null,null,null,null,null,null,null,null,null,null,null,null,null,null,null,null,null,null,null,null,null,null,null,null,null,null,null,null,null,null,null,null,null,null,null,null,null,null,null,null,null,null,null,null,null,null,null,null,null,null,null,null,null," ",null,"x",true]
[null,"        -   ikke fremskydende til ansigtsknops spids, måske næsten fladt ?",null,null,null,null,null,null,null,null,null,null,null,null,null,null,null,null,null,null,null,null,null,null,null,null,null,null,null,null,null,null,null,null,null,null,"            ",null,null,null,null,null,null,null,null,null,null,null,null,null,null,null,null,null,null,null,null,null,null,null,null,null,null,null,null,null,null,null,null,null,null,null,null,null,null,null,null,null,null,null," ",null," ",0]
[null,"Forlår med langt hvidt hår inderst på undersidens basis ?",null,null,null,null,null,null,null,null,null,null,null,null,null,null,null,null,null,null,null,null,null,null,null,null,null,null,null,null,null,null,null,null,null,null,{"$f":"VLOOKUP(CE80,Z80:AA99,2)","v":"Platycheirus manicatus"},null,null,null,null,null,null,null,null,null,null,null,null,null,null,null,null,null,null,null,null,null,null,null,null,null,null,null,null,null,null,null,null,null,null,null,null,null,null,null," ",null,null,null," ",null," ",0]
[null,"     -     ikke med et sådant hår ?    ",null,null,null,null,null,null,null,null,null,null,null,null,null,null,null,null,null,null,null,null,null,null,null,null,null,null,null,null,null,null,null,null,null,null,null,null,null,null,null,null,null,null,null,null,null,null,null,null,null,null,null,null,null,null,null,null,null,null,null,null,null,null,null,null,null,null,null,null,null,null,null,null,null,null,null,null,null,null," ",null," ",0]
["-",null,null,null,null,null,null,null,null,null,null,null,null,null,null,null,null," ",null,null,null,null,null,null,null,null,null,null,null,null,null,null,null,null,null,null,null,null,null,1,"angustatus",null,null,null,null,null,{"$f":"COUNT(AV49:CA49)","v":2}," Platycheirus angustatus",null,null,null,null,null,null,null,null,null,{"$f":"COUNT(AV49:CA49)","v":2},"    Smal Bredfodsflue"]
[null,null,null,null,null,null,null,null,null,null,null,null,null,null,null,null,null," ",null,"     ",null,null,null,null,null,null,null,null,null,null,null,null,null,null,null,null,null,null,null,2,"clypeatus",null,null,null,null,null,3,"Platycheirus clypeatus",null,null,null,null,null,null,null,null,null,3,"   Skjold-Bredfodflue"]
[null,null,null,null,null,null,null,null,null,null,null,null,null,null,null,null,null,null,null,null,null,null,null,null,null,null,null,null,null,null,null,null,null,null,null,null,null,null,null,3,"europaeus",null,null,null,null,null,3," Platycheirus europaeus",null,null,null,null,null,null,null,null,null,3,"Europæisk Bredfodsflue"]
[null,null,null,null,null,null,null,null,null,null,null,null,null,1,"Gule bagkropspletter",null,null,null,null,null,null,null,null,null,null,1,"Platycheirus angustatus",null,null,null,null,null,null,null,null,null,null,null,null,4,"fulviventris",null,null,null,null,null,2,"Platycheirus fulviventris",null,null,null,null,null,null,null,null,null,2,"    Rødgul Bredfodsflue",null,null,null,null,null,null,null,null,null,null,null,null,null,null,null,null,null,null,null,null,null,null,null,16]
[null,null,null,null,null,null,null,null,null,null,null,null,null,2,"Sølv-ell. bronzefarvede pletter",null,null,null,null,null,null,null,null,null,null,2,"Platycheirus clypeatus",null,null,null,null,null,null,null,null,null,null,null,null,5,"immarginatus",null,null,null,null,null,3,"Platycheirus immarginatus",null,null,null,null,null,null,null,null,null,3,"    Kyst-Bredfodsflue"]
[null,null,null,null,null,null,null,null,null,null,null,null,null,3,"Røde partier",null,null,null,null,null,null,null,null,null,null,3,"Platycheirus europaeus",null,null,null,null,null,null,null,null,null,null,null,null,6,"occultus",null,null,null,null,null,3,"Platycheirus occultus",null,null,null,null,null,null,null,null,null,3,"Sløret Bredfodsflue"]
[null,null,null,null,null,null,null,null,null,null,null,null,null,4,"Hvidgule pletter",null,null,null,null,null,null,null,null,null,null,4,"Platycheirus fulviventris",null,null,null,null,null,null,null,null,null,null,null,null,7,"perpallidus",null,null,null,null,null,4,"Platycheirus perpallidus",null,null,null,null,null,null,null,null,null,4,"    BlegBredfodsflue"]
[null,null,null,null,null,null,null,null,null,null,null,null,null,5,"5 par pletter, 6. leds små",null,null,null,null,null,null,null,null,null,null,5,"Platycheirus immarginatus",null,null,null,null,null,null,null,null,null,null,null,null,8,"podagratus",null,null,null,null,null,3,"Platycheirus podagratus",null,null,null,null,null,null,null,null,null,3,"   Lang Bredfodsflue"]
[null,null,null,null,null,null,null,null,null,null,null,null,null,6,"4 par pletter, 5. leds ofte små",null,null,null,null,null,null,null,null,null,null,6,"Platycheirus occultus",null,null,null,null,null,null,null,null,null,null,null,null,9,"scambus",null,null,null,null,null,3,"Platycheirus scambus",null,null,null,null,null,null,null,null,null,3,"Storplettet Bredfodsflue"]
[null,null,null,null,null,null,null,null,null,null,null,null,null,7,"3 par pletter, måske kun 2 par",null,null,null,null,null,null,null,null,null,null,7,"Platycheirus perpallidus",null,null,null,null,null,null,null,null,null,null,null,null,10,"sticticus",null,null,null,null,null,5,"   Platycheirus sticticus",null,null,null,null,null,null,null,null,null,5,"    Lille Bredfodsflue"]
[null,null,null,null,null,null,null,null,null,null,null,null,null,8,"Hvidgule eller rødlige partier",null,null,null,null,null,null,null,null,null,null,8,"Platycheirus podagratus",null,null,null,null,null,null,null,null,null,null,null,null,11,"peltatus",null,null,null,null,null,5,"   Platycheirus peltatus",null,null,null,null,null,null,null,null,null,5,"  Stor Bredfodsflue"]
[null,null,null,null,null,null,null,null,null,null,null,null,null,9,"Følehornsled 3 helt sort",null,null,null,null,null,null,null,null,null,null,9,"Platycheirus scambus",null,null,null,null,null,null,null,null,null,null,null,null,12,"transfugus",null,null,null,null,null,4,"Platycheirus transfugus",null,null,null,null,null,null,null,null,null,4,"Gulplettet Spiralhårsflue"]
[null,null,null,null,null,null,null,null,null,null,null,null,null,10,"Følehornsled 3 lysere underst",null,null,null,null,null,null,null,null,null,null,10,"Platycheirus sticticus",null,null,null,null,null,null,null,null,null,null,null,null,13,"albimanus",null,null,null,null,null,4,"Platycheirus albimanus",null,null,null,null,null,null,null,null,null,4,"   Sortblå Bredfodsflue"]
[null,null,null,null,null,null,null,null,null,null,null,null,null,11,"Baglår helt gule",null,null,null,null,null,null,null,null,null,null,11,"Platycheirus peltatus",null,null,null,null,null,null,null,null,null,null,null,null,14,"scutatus",null,null,null,null,null,3,"    P. scutatus-kompleks",null,null,null,null,null,null,null,null,null,3,"       Bredfodsflue"]
[null,null,null,null,null,null,null,null,null,null,null,null,null,12,"Baglår med mørke ringe",null,null,null,null,null,null,null,null,null,null,12,"Platycheirus transfugus",null,null,null,null,null,null,null,null,null,null,null,null,15,"discimanus",null,null,null,null,null,5,"Platycheirus discimanus",null,null,null,null,null,null,null,null,null,5,"   Skive-Bredfodsflue"]
[null,null,null,null,null,null,null,null,null,null,null,null,null,13,"Baglår helt eller næsten  helt sorte",null,null,null,null,null,null,null,null,null,null,13,"Platycheirus albimanus",null,null,null,null,null,null,null,null,null,null,null,null,16,"manicatus",null,null,null,null,null,7,"Platycheirus manicatus",null,null,null,null,null,null,null,null,null,7,"    Mat Bredfodsflue"]
[null,null,null,null,null,null,null,null,null,null,null,null,null,14,"Bagskinneben gule",null,null,null,null,null,null,null,null,null,null,14,"Platycheirus scutatus-kompleks",null,null,null,null,null,null,null,null,null,null,null,null,17,"tarsalis",null,null,null,null,null,6,"Platycheirus tarsalis",null,null,null,null,null,null,null,null,null,6,"   Tidlig Bredfodsflue"]
[null,null,null,null,null,null,null,null,null,null,null,null,null,15,"Bagskinneben med mørke ringe",null,null,null,null,null,null,null,null,null,null,15,"Platycheirus discimanus",null,null,null,null,null,null,null,null,null,null,null,null,18,"ambiguus",null,null,null,null,null,2,"  Platycheirus ambiguus",null,null,null,null,null,null,null,null,null,2,"Gråplettet Spiralhårsflue"]
[null,null,null,null,null,null,null,null,null,null,null,null,null,16,"Bagskinneben sorte, ofte gule ved knæ",null,null,null,null,null,null,null,null,null,null,16,"Platycheirus manicatus",null,null,null,null,null,null,null,null,null,null,null,null,19,"granditarsis",null,null,null,null,null,4,"Platycheirus granditarsis",null,null,null,null,null,null,null,null,null,4,"     Rød Ildsvirreflue"]
[null,null,null,null,null,null,null,null,null,null,null,null,null,17,"For- og mellemlår gule ",null,null,null,null,null,null,null,null,null,null,17,"Platycheirus tarsalis",null,null,null,null,null,null,null,null,null,null,null,null,20,"rosarum",null,null,null,null,null,3,"  Platycheirus rosarum",null,null,null,null,null,null,null,null,null,3,"Toplettet Ildsvirreflue"]
[null,null,null,null,null,null,null,null,null,null,null,null,null,18,"For- og mellemlår med mørke ringe",null,null,null,null,null,null,null,null,null,null,18,"Platycheirus ambiguus",null,null,null,null,null,null,null,null,null,null,null,null,21]
[null,null,null,null,null,null,null,null,null,null,null,null,null,19,"For- og mellemlår sorte, gul.spids",null,null,null,null,null,null,null,null,null,null,19,"Platycheirus granditarsis",null,null,null,null,null,null,null,null,null,null,null,null,22]
[null,null,null,null,null,null,null,null,null,null,null,null,null,20,"For- og mellemskinneben gule",null,null,null,null,null,null,null,null,null,null,20,"Platycheirus rosarum",null,null,null,null,null,null,null,null,null,null,null,null,23]
[null,null,null,null,null,null,null,null,null,null,null,null,null,21,"For- og mellemsk.ben, mørke partier ",null,null,null,null,null,null,null,null,null,null,null,null,null,null,null,null,null,null,null,null,null,null,null,null,24]
[null,null,null,null,null,null,null,null,null,null,null,null,null,22,"For- og mellemskinneben sorte ",null,null,null,null,null,null,null,null,null,null,null,null,null,null,null,null,null,null,null,null,null,null,null,null,25]
[null,null,null,null,null,null,null,null,null,null,null,null,null,23,"Bagfødder helt eller delvis gule",null,null,null,null,null,null,null,null,null,null,null,null,null,null,null,null,null,null,null,null,null,null,null,null,26]
[null,null,null,null,null,null,null,null,null,null,null,null,null,24,"Bagfødder sorte"]
[null,null,null,null,null,null,null,null,null,null,null,null,null,25,"For- og mellemfødder gule"]
[null,null,null,null,null,null,null,null,null,null,null,null,null,26,"For- og mellemfødder delvis sorte",null,null,null,null,null,null,null,null,null,null,null,null,null,null,null,null,null,null,null,null,null,null,null,null,null,null,null,null,null,null,null,null,null,null,null,null,null,null,null,null,null,null,null,null,null,null,null,null,null,null,null,null,null,null,null,null,null,null,null,null,null,null,null,null,null,null,null,null,null,null,null,null,{"$f":"$CE$80","v":16},{"$f":"VLOOKUP(CJ105,'Ark3'!C3:D28,2,FALSE)","v":"Ark3!B18"}]
[null,null,null,null,null,null,null,null,null,null,null,null,null,27,"3. følehornsled helt sort",null,null,null,null,null,null,null,null,null,null,null,null,null,null,null,null,null,null,null,null,null,null,null,null,null,null,null,null,null,null,null,null,null,null,null,null,null,null,null,null,null,null,null,null,null,null,null,null,null,null,null,null,null,null,null,null,null,null,null,null,null,null,null,null,null,null,null,null,null,null,null,null,null,null,null,null,{"$f":"$CE$80","v":16},{"$f":"VLOOKUP(CN106,'Ark2'!B1:C26,2,FALSE)","v":"ARK2!A16"},null,{"$f":"$CE$80","v":16},{"$f":"VLOOKUP(CQ106,'Ark2'!F1:G26,2,FALSE)","v":"ARK2!E16"},null,{"$f":"$BY$36","v":9},{"$f":"VLOOKUP(CT106,'Ark2'!J1:K32,2,FALSE)","v":"ARK2!i9"}]
[null,null,null,null,null,null,null,null,null,null,null,null,null,28,"3. Følehornsled lysere forneden"]
[null,null,null,null,null,null,null,null,null,null,null,null,null,29,"Mundkant fremskydende, her kraftigt"]
[null,null,null,null,null,null,null,null,null,null,null,null,null,30,"Mundkant ikke eller lidt  fremskydende"]
[null,null,null,null,null,null,null,null,null,null,null,null,null,31,"Forlår med hvidt håt inderst",null,null,null,null,null,null,null,null,null,null,null,null,null,null,null,null,null,null,null,null,null,null,null,null,null,null,"Lopslag for teksterne bruger CI105 og CJ105 og CK105 sammen med CE80 , der er lig alternativknapperne"]
[null,null,null,null,null,null,null,null,null,null,null,null,null,32,"Forlår uden hvidt hår inderst",null,null,null,null,null,null,null,null,null,null,null,null,null,null,null,null,null,null,null,null,null,null,null,null,null,null,"Lopslag forbillede1 bruger CM106 og CN106 og CO106 sammen med CE80 , der er lig alternativknapperne"]
[null,null,null,null,null,null,null,null,null,null,null,null,null,null,null,null,null,null,null,null,null,null,null,null,null,null,null,null,null,null,null,null,null,null,null,null,null,null,null,null,null,"Lopslag forbillede2 bruger CP106 og CQ106 og CR106 sammen med CE80 , der er lig alternativknapperne"]
[null,null,null,null,null,null,null,null,null,null,null,null,null,null,null,null,null,null,null,null,null,null,null,null,null,null,null,null,null,null,null,null,null,null,null,null,null,null,null,null,null,"Lopslag for kendetegnbillede bruger CS106 og CT106 og CU106 sammen med BY36 , der kodes af checkboxene"]
[null,null,null,null,null,null,null,null,null,null,null,null,null,null,null,null,null,null,null,null,null,null,null,null,null,null,null,null,null,null,null,null,null,null,null,null,null,null,null,null,null,"flag1 er for 1. billede;flag3 er for 2. billede;flag2 er for teksterne; flag 4 er for detailbillederne"]

{"sheet":"Ark2","index":1,"n_rows":32,"n_cols":12,"rows_kept":32,"cut":false,"hidden":false,"merged":[]}
[null,1,"ARK2!A1","angustatus",null,1,"ARK2!E1",null,1,1,"ARK2!I1","Gule pletter"]
[null,2,"ARK2!A2","clypeatus",null,2,"ARK2!E2",null,2,2,"ARK2!I2","grå pletter"]
[null,3,"ARK2!A3","europaeus",null,3,"ARK2!E3",null,3,3,"ARK2!I3","røde"]
[null,4,"ARK2!A4","fulviventris",null,4,"ARK2!E4",null,4,4,"ARK2!I4","hvide"]
[null,5,"ARK2!A5","immarginatus",null,5,"ARK2!E5",null,5,5,"ARK2!I5","5 pletter"]
[null,6,"ARK2!A6","occultus",null,6,"ARK2!E6",null,6,6,"ARK2!I6","4 pletter"]
[null,7,"ARK2!A7","perpilidus",null,7,"ARK2!E7",null,7,7,"ARK2!I7","3-2 pletter "]
[null,8,"ARK2!A8","podagratus",null,8,"ARK2!E8",null,8,8,"ARK2!I8","anderledes"]
[null,9,"ARK2!A9","scambus",null,9,"ARK2!E9",null,null,9,"ARK2!i9","ant-3 sort"]
[null,10,"ARK2!A10","sticticus",null,10,"ARK2!E10",null,null,10,"ARK2!I10","ant. 3 gul"]
[null,11,"ARK2!A11","peltatus",null,11,"ARK2!E11",null,11,11,"ARK2!I11","baglår gule"]
[null,12,"ARK2!A12","transfugus",null,12,"ARK2!E12",null,null,12,"ARK2!I12","med ringe"]
[null,13,"ARK2!A13","albimanus",null,13,"ARK2!E13",null,13,13,"ARK2!I13","sorte"]
[null,14,"ARK2!A14","scutatus",null,14,"ARK2!E14",null,14,14,"ARK2!I14","bagsk.ben gule"]
[null,15,"ARK2!A15","discimanus",null,15,"ARK2!E15",null,15,15,"ARK2!I15","med ringe"]
[null,16,"ARK2!A16","manicatus",null,16,"ARK2!E16",null,null,16,"ARK2!I16","sorte"]
[null,17,"ARK2!A17","tarsalis",null,17,"ARK2!E17",null,null,17,"ARK2!I17","forlår gule"]
[null,18,"ARK2!A18","ambiguus",null,18,"ARK2!E18",null,null,18,"ARK2!I18","ringe"]
[null,19,"ARK2!A19","grandiarsis",null,19,"ARK2!E19",null,19,19,"ARK2!I19","sorte"]
[null,20,"ARK2!A20","rosarum",null,20,"ARK2!E20",null,null,20,"ARK2!I20","Forsk.bengule"]
[null,21,"ARK2!A21",null,null,21,"ARK2!E21",null,21,21,"ARK2!I21","med ringe "]
[null,22,"ARK2!A22",null,null,22,"ARK2!E22",null,22,22,"ARK2!I22","sorte"]
[null,23,"ARK2!A23",null,null,23,"ARK2!E23",null,null,23,"ARK2!I23","bagf. Gule"]
[null,24,"ARK2!A24",null,null,24,"ARK2!E24",null,null,24,"ARK2!I24","bagf.sorte"]
[null,25,"ARK2!A25",null,null,25,"ARK2!E25",null,null,25,"ARK2!I25","forf.  Gule"]
[null,26,"ARK2!A26",null,null,26,"ARK2!E26",null,null,26,"ARK2!I26","forf. sorte"]
[null,null,null,null,null,null,null,null,27,27,"ARK2!I27","3. led sort"]
[null,null,null,null,null,null,null,null,28,28,"ARK2!I28","gult"]
[null,null,null,null,null,null,null,null,null,29,"ARK2!I29","fremsk. Ansigt"]
[null,null,null,null,null,null,null,null,null,30,"ARK2!I30","fladt ansigt"]
[null,null,null,null,null,null,null,null,31,31,"ARK2!I31"]
[null,null,null,null,null,null,null,null,32,32,"ARK2!I32"]

{"sheet":"Ark3","index":2,"n_rows":28,"n_cols":7,"rows_kept":28,"cut":false,"hidden":false,"merged":[]}
[]
[]
[" ",null,1,"Ark3!B3"]
[null,null,2,"Ark3!B4"]
[null,null,3,"Ark3!B5"]
[null,null,4,"Ark3!B6",null,null,"ø"]
[null,null,5,"Ark3!B7"]
[null,null,6,"Ark3!B8"]
[null,null,7,"Ark3!B9"]
[null,null,8,"Ark3!B10"]
[null,null,9,"Ark3!B11"]
[null,null,10,"Ark3!B12"]
[null,null,11,"Ark3!B13"]
[null,null,12,"Ark3!B14"]
[null,null,13,"Ark3!B15"]
[null,null,14,"Ark3!B16"]
[null,null,15,"Ark3!B17"]
[null,null,16,"Ark3!B18"]
[null,null,17,"Ark3!B19"]
[null,null,18,"Ark3!B20"]
[null,null,19,"Ark3!B21"]
[null,null,20,"Ark3!B22"]
[null,null,21,"Ark3!B23"]
[null,null,22,"Ark3!B24"]
[null,null,23,"Ark3!B25"]
[null,null,24,"Ark3!B26"]
[null,null,25,"Ark3!B27"]
[null,null,26,"Ark3!B28"]

{"sheet":"Ark4","index":3,"n_rows":0,"n_cols":0,"rows_kept":0,"cut":false,"hidden":false,"merged":[]}